Cogmind - Beta 16 @@@ ROGUE MODE // 2026.01.18 @ 14:14:08 Player: K0T Result: Destroyed by as-92485 with Assembled Heavy Rifle Performance ------------- Evolutions (0) 0 Regions Visited (2) 400 Robots Destroyed (15) 75 Value Destroyed (316) 316 Prototype IDs (0) 0 Alien Tech Used (0) 0 Bonus (0) 0 TOTAL SCORE: 791 Bonus ------- None Cogmind --------- Core Integrity 0/250 Matter 280/300 Energy 245/265 System Corruption 2% Temperature Cool (60) Movement Hovering (120) Ox1 Location -10/Mines Parts ------- > --- POWER (1) -------- Improved Ion Engine > --- PROPULSION (2) --- Hover Unit > --- UTILITY (2) ------ ECM Suite > --- WEAPON (2) ------- Beam Cannon > --- INVENTORY (5) ---- Light Treads Light Treads Hover Unit Large Storage Unit Datajack Peak State ------------ > --- POWER ------------ Improved Ion Engine > --- PROPULSION ------- Hover Unit Hover Unit > --- UTILITY ---------- Small Storage Unit ECM Suite > --- WEAPON ----------- Autogun Grenade Launcher > --- INVENTORY -------- Light Treads Light Treads Aluminum Leg Hover Unit Hover Unit Large Storage Unit Beam Cannon Datajack [Rating: 9] Favorites ----------- Power Improved Ion Engine Engine Improved Ion Engine Propulsion Hover Unit Leg Aluminum Leg Hover Unit Hover Unit Flight Unit Flight Unit Utility Small Storage Unit Device ECM Suite Storage Small Storage Unit Weapon Autogun Energy Gun Medium Laser Energy Cannon Beam Cannon Ballistic Gun Autogun Launcher Grenade Launcher Build | -11 -10 -10 ------- Run | Yrd Mat Min Slots Evolved . | . . . Power . | . . . Propulsion . | . . . Utility . | . . . Weapon . | . . . Parts Attached 19 | 6 11 2 Power 4 | 1 3 . Engine 4 | 1 3 . Core . | . . . Reactor . | . . . Propulsion 6 | 2 3 1 Treads . | . . . Leg 2 | 2 . . Wheel . | . . . Hover 3 | . 2 1 Flight 1 | . 1 . Utility 3 | 1 2 . Device 2 | . 2 . Storage 1 | 1 . . Processor . | . . . Hackware . | . . . Protection . | . . . Artifact . | . . . Weapon 6 | 2 3 1 Energy Gun 1 | 1 . . Energy Cannon 1 | . . 1 Ballistic Gun 3 | 1 2 . Ballistic Cannon . | . . . Launcher 1 | . 1 . Special Weapon . | . . . Impact Weapon . | . . . Slashing Weapon . | . . . Piercing Weapon . | . . . Special Melee Weapon . | . . . Unidentified Prototypes . | . . . Parts Lost 11 | . 6 5 Power 1 | . 1 . Propulsion 4 | . 2 2 Utility 2 | . 1 1 Weapon 4 | . 2 2 Highest Loss Streak 5 | . 4 5 To Critical Strikes . | . . . Average Backups 6 | 2 6 7 Power . | . . . Propulsion 3 | . 4 4 Utility . | . . 1 Weapon . | . . . Tool/Special . | . . . Unused Backups 6 | . . 6 Power . | . . . Propulsion 4 | . . 4 Utility 1 | . . 1 Weapon . | . . . Tool/Special 1 | . . 1 Average Slot Usage (%) 83 | . 83 85 Engine 12 | . 12 14 Leg 6 | . 6 . Hover 19 | . 19 21 Device 11 | . 11 14 Storage 13 | . 14 10 Energy Gun 2 | . 3 . Ballistic Gun 13 | . 13 10 Launcher 1 | . 1 10 Peak Build Rating 9 | 6 9 9 Average Rating 7 | 4 7 7 On Entrance 5 | . 6 9 Avg Prop Armor Cover (%) . | . . . Naked Turns . | . . . Heaviest Build 20 | 12 20 20 Greatest Support 20 | 20 20 12 Greatest Overweight (x) 3 | 3 2 3 Average Overweight (x) . | . . 1 Largest Inventory Capacity 8 | 8 8 8 Average Capacity 7 | 7 8 7 Most Carried 8 | 5 8 8 Average Carried 6 | 2 7 7 Final Capacity 8 | 8 8 5 Final Carried 8 | 4 8 5 Class Distribution -------------------- 100% | Mutant Dominant Class ---------------- Mutant | -10/Materials Mutant | -10/Mines Resources | -11 -10 -10 ----------- Run | Yrd Mat Min Matter Collected 545 | 167 378 . Remotely . | . . . Salvage Created 429 | . 425 4 Parts 28 | . 28 . Haulers Intercepted 1 | . 1 . Recyclers Shooed . | . . . Parts Field Recycled . | . . . Retrieved Matter . | . . . Parts Self-Destructed . | . . . Prevented . | . . . Parts Restored . | . . . Kills | -11 -10 -10 ------- Run | Yrd Mat Min Combat Hostiles Destroyed 17 | . 13 4 Guns 13 | . 13 . AOE 4 | . . 4 Classes Destroyed 5 | . 4 1 Hauler 1 | . 1 . Operator 1 | . 1 . Swarmer 6 | . 6 . Grunt 7 | . 7 . Assembled 4 | . . 4 Best Kill Streak 5 | . 5 4 Combat Bots Only 5 | . 5 4 Max Kills in Single Turn 2 | . 1 2 Gunslinging . | . . . Exploded 2 | . . 2 Melee . | . . . Uniques/NPCs Destroyed . | . . . Combat | -11 -10 -10 -------- Run | Yrd Mat Min Hostile Shots Fired 142 | . 117 25 Missed 38 | . 31 7 Hits 104 | . 86 18 Melee 4 | . . 4 Projectile 100 | . 86 14 Damage Taken 1215 | . 813 402 Core 255 | . 222 33 Absorbed by Shields . | . . . Core Remaining (%) 100 | 100 . . Volleys Fired 75 | . 70 5 Largest 2 | . 2 1 Hottest 70 | . 70 60 Shots Fired 107 | . 102 5 Gun 102 | . 102 . Cannon 3 | . . 3 Launcher 2 | . . 2 Special . | . . . Kinetic 63 | . 63 . Thermal 42 | . 39 3 Explosive 2 | . . 2 Electromagnetic . | . . . Robot Hit Streak 13 | . 13 . Robot Miss Streak 7 | . 7 3 Penetration Max . | . . . Secondary Targets . | . . . Shots Hit Robots 62 | . 62 . Core Hits 31 | . 21 10 Critical Kills . | . . . Critical Parts Destroyed . | . . . Critical Strikes 2 | . 2 . Burn 2 | . 2 . Melee Attacks . | . . . Impact . | . . . Slashing . | . . . Piercing . | . . . Sneak Attacks . | . . . Combat Hostiles . | . . . Follow-up Attacks . | . . . Damage Inflicted 1050 | . 822 228 Guns 819 | . 819 . Cannons . | . . . Explosions 228 | . . 228 Melee . | . . . Ramming 3 | . 3 . Kinetic 497 | . 497 . Thermal 322 | . 322 . Explosive 228 | . . 228 Electromagnetic . | . . . Impact . | . . . Slashing . | . . . Piercing . | . . . Highest Corruption 2 | . . 2 Average Corruption 2 | . . 2 Corruption Purged . | . . . Corruption Blocked . | . . . Overload Shots . | . . . Overflow Damage . | . . . Projectiles . | . . . Explosions . | . . . Melee . | . . . Knockbacks . | . . . Impact . | . . . Kinetic . | . . . Secondary . | . . . Self-Inflicted Damage 16 | . . 16 Shots 1 | . . 1 Rammed . | . . . Targets Rammed 1 | . 1 . Kicked 1 | . 1 . Crushed . | . . . Highest Temperature 285 | . 285 60 Average Temperature 102 | . 104 36 Received Heat Transfer 270 | . 270 . Siege Activations . | . . . Martial Activations . | . . . Shielding Activations . | . . . Robots Disrupted . | . . . Combat Hostiles . | . . . Robots Corrupted . | . . . Combat Hostiles . | . . . Parts Fried . | . . . Impact Corruptions . | . . . Robots Melted . | . . . Combat Hostiles . | . . . Parts Melted 5 | . 5 . Heat Transferred 1110 | . 1110 . Parts Sabotaged . | . . . Parts Stolen . | . . . Parts Stripped . | . . . Power Chain Reactions . | . . . Alert | -11 -10 -10 ------- Run | Yrd Mat Min Maximum Alert Level . | . . . Low Security (%) 100 | 100 100 100 Level 1 . | . . . Level 2 . | . . . Level 3 . | . . . Level 4 . | . . . Level 5 . | . . . High Security . | . . . Max Security . | . . . Peak Influence 100 | . 100 16 Initial 16 | . . 16 Average 23 | . 25 8 Influence Increases 389 | . 384 5 Destroy 0b10 Robot/C 260 | . 260 . Destroy 0b10 Robot/NC 10 | . 10 . Destroy Leader 42 | . 42 . Successful Hack 12 | . 12 . Select Force Hacks 60 | . 60 . Destroy Structure 5 | . . 5 Influence Decreases 389 | . 342 47 Entered New Map 26 | . . 26 Time Decay 287 | . 282 5 Lost Part 76 | . 60 16 Squads Dispatched 5 | . 5 . Investigation 5 | . 5 . Extermination . | . . . Reinforcement . | . . . Assault . | . . . Garrison . | . . . Intercept . | . . . Searches Triggered . | . . . Construction Impeded . | . . . Haulers Reinforced . | . . . Active Scanning Responses . | . . . Cargo Convoy Interrupts . | . . . Stealth | -11 -10 -10 --------- Run | Yrd Mat Min Distress Signals 4 | . 4 . Communications Jammed . | . . . Distress Signals . | . . . Times Spotted 46 | . 27 19 Peak Tracking Total 20 | . 5 20 Tactical Retreats 3 | . 3 . ECM-based Alert Blocks 4 | . 4 . Traps | -11 -10 -10 ------- Run | Yrd Mat Min Traps Triggered 2 | . 2 . Indirectly . | . . . Trap Hack Attempts . | . . . Triggered . | . . . Disarmed . | . . . Reprogrammed . | . . . Reused . | . . . Traps Extracted . | . . . Installed . | . . . Triggered . | . . . Machines | -11 -10 -10 ---------- Run | Yrd Mat Min Machines Disabled . | . . . Max in Single Turn . | . . . Machines Repaired . | . . . Machines Dismantled . | . . . Machines Sabotaged . | . . . Overloaded Fab Kills . | . . . Hacking | -11 -10 -10 --------- Run | Yrd Mat Min Machines Accessed 8 | . 8 . Terminals 6 | . 6 . Fabricators . | . . . Repair Stations . | . . . Recycling Units 2 | . 2 . Scanalyzers . | . . . Garrison Access . | . . . Total Hacks 21 | . 21 . Successful 16 | . 16 . Failed 5 | . 5 . Catastrophic 2 | . 2 . Database Lockouts . | . . . Manual 24 | . 24 . Terminals 18 | . 18 . Fabricators . | . . . Repair Stations . | . . . Recycling Units 3 | . 3 . Scanalyzers . | . . . Garrison Access . | . . . Terminal Hacks 3 | . 3 . Robot Analysis 2 | . 2 . Terminal Index 1 | . 1 . Fabricator Hacks . | . . . Repair Station Hacks . | . . . Recycling Unit Hacks . | . . . Scanalyzer . | . . . Garrison Access Hacks . | . . . Unauthorized Hacks 11 | . 11 . Terminals 9 | . 9 . Botnet 5 | . 5 . Skim 4 | . 4 . Fabricators . | . . . Repair Stations . | . . . Recycling Units 2 | . 2 . Tunnel 2 | . 2 . Scanalyzers . | . . . Garrison Access . | . . . Data Cores Recovered . | . . . Used . | . . . Hacking Detections 6 | . 6 . Full Trace Events 1 | . 1 . Feedback Events . | . . . Feedback Blocked . | . . . Robot Schematics Acquired . | . . . Robots Built . | . . . Authchips . | . . . Time . | . . . Total Robot Build Rating . | . . . Part Schematics Acquired . | . . . Parts Built . | . . . Authchips . | . . . Time . | . . . Total Part Build Rating . | . . . Part Studies Acquired . | . . . Parts Repaired . | . . . Time . | . . . Parts Recycled . | . . . Recycled Matter . | . . . Retrieved Matter . | . . . Retrieved Components . | . . . Parts Scanalyzed . | . . . Part Schematics Acquired . | . . . Parts Damaged . | . . . Bothacking | -11 -10 -10 ------------ Run | Yrd Mat Min Used RIF Installer . | . . . Robots Hacked . | . . . Non-combat . | . . . Combat . | . . . Robot Hacks Applied . | . . . Relay Couplers Released . | . . . Fabnet Peak Effective % . | . . . Robots Rewired . | . . . Allies Hacked . | . . . Hacks Repelled . | . . . Allies | -11 -10 -10 -------- Run | Yrd Mat Min Total Allies . | . . . Largest Group . | . . . Highest-Rated Group . | . . . Highest-Rated Ally . | . . . Total Orders . | . . . Ally Attacks . | . . . Total Damage . | . . . Kills . | . . . Allies Corrupted . | . . . Allies Melted . | . . . Intel | -11 -10 -10 ------- Run | Yrd Mat Min Active Infowar (turns) 903 | . 876 27 ECM 903 | . 876 27 Robot Analysis Total 2 | . 2 . Derelict Logs Recovered . | . . . Drone Launches . | . . . Drone Recoveries . | . . . Exploration | -11 -10 -10 ------------- Run | Yrd Mat Min Turns Passed 1181 | 69 1085 27 Spaces Moved 824 | 50 762 12 Core 27 | 22 5 . Treads . | . . . Legs 130 | 28 102 . Wheels . | . . . Hover 630 | . 618 12 Flight 37 | . 37 . Fastest Speed 50 | 50 56 116 Average Speed 111 | 107 112 126 Slowest Speed 240 | 200 150 240 Overloaded Moves . | . . . Propulsion Burnouts . | . . . Robots Hopped . | . . . Potential Cave-ins . | . . . Cave-ins Triggered . | . . . Exploration Rate (%) 34 | 4 92 6 Regions Visited 2 Branch Regions 1 Pre-discovered Areas 2 | . 2 . Known Exits Taken . | . . . Unknown Exits Taken 2 | 1 1 . Scrap Searched . | . . . Spaces Dug . | . . . Terrain Destroyed 5 | . . 5 Melee . | . . . Projectile . | . . . AOE 5 | . . 5 Terrain Rammed . | . . . Walls Destroyed . | . . . Machines Disabled . | . . . Actions | -11 -10 -10 --------- Run | Yrd Mat Min Total 982 | 65 898 19 Wait 34 | . 34 . Move 822 | 49 761 12 Hop . | . . . Pick Up 25 | 10 15 . Fast Attach 2 | . 2 . Attach 17 | 6 9 2 Detach . | . . . Swap 2 | . 2 . Drop 4 | . 4 . Fire 75 | . 70 5 Melee . | . . . Ram . | . . . Kick 1 | . 1 . Crush . | . . . Escape Stasis . | . . . Rewire . | . . . Trap . | . . . Miscellaneous . | . . . Route ------- -11/Scrapyard -10/Materials (discovered 5 exits: [*Mat x3] / [*Min x2]) -10/Mines History --------- Turn | Location | Event 7 | -11/Scrapyard | Discovered new exit (range 16) 70 | -11/Scrapyard | Entered Materials 71 | -10/Materials | Met a group of wandering Federalists 270 | -10/Materials | Core integrity fell below 50% 301 | -10/Materials | Build established: Mutant 330 | -10/Materials | Core integrity fell below 20% 354 | -10/Materials | Lost 4 parts (1p2n1w) 366 | -10/Materials | Discovered new exit (range 13) 476 | -10/Materials | Discovered new exit (range 4) 779 | -10/Materials | Discovered new exit (range 5) 781 | -10/Materials | Discovered new exit (range 6) 936 | -10/Materials | Discovered new exit (range 15) 1155 | -10/Materials | Entered Mines 1156 | -10/Mines | Assembled infested the area 1161 | -10/Mines | Assisted by a Guerilla fighting off Assembled 1182 | -10/Mines | Destroyed by as-92485 with Assembled Heavy Rifle Last Messages --------------- come on!" 01167_ Hover Unit destroyed. 01171_ as-99047 destroyed. 01171_ as-43015 destroyed. 01171_ Hover Unit destroyed. 01171_ as-40287 destroyed. 01171_ as-86091 destroyed. 01171_ as-86301 destroyed. 01171_ as-66802 destroyed. 01171_ as-97867 destroyed. 01171_ as-96180 destroyed. 01171_ as-38498 destroyed. 01172_ as-11306 destroyed. 01172_ as-32023 destroyed. 01174_ as-71859 destroyed. 01174_ as-83542 destroyed. 01175_ Autogun destroyed. 01176_ The unstable cave ceiling collapses. 01177_ Grenade Launcher destroyed. 01178_ Sml. Storage Unit destroyed. Map ----- +----------------------------------------------------+ | ????????????????????????????????????????? | | ????????????????????????????????????????? | | ????????????????????????????????????????? | | ????????????????????????????????????????? | | ????????????????????????????????????????? | | ????????????????????????????????????????? | | ????????????????????????????????????????? | | ????????????????????????????????????????? | | ????????????????????????????????????????? | | ????????????????????????????????????????? | | ????????????????????????????????????????? | | ????????????????????????????????????????? | | ????????????????????????????????????????? | | ????????????????????????????????????????? | | ????????????????????????????????????????? | | ????????????????????????????????????????? | | ????????????????????????????????????????? | | ????????????????????????????????????????? | | ????###??####???????????????????????????? | | ???## ### ???????????????????????????? | | ???# ???????????????????????????? | | ???# ??????????????????????????? | | ???# ######????????????????????? | | ???# < ;##???????????????????? | | ????# a ;##??????????????????? | | ??????# a @ ; #??????????????????? | | ??????# # ; #??????????????????? | | ??????# ;;#??????????????????? | | ?????# % a ### #??????????????? | | ?????# # #??????????????? | | ?????## %! ;;;#????????????????? | | ??????## ] ;;####????????????????? | | ???????##############???????????????????? | | ????????????????????????????????????????? | | ????????????????????????????????????????? | | ????????????????????????????????????????? | | ????????????????????????????????????????? | | ????????????????????????????????????????? | | ????????????????????????????????????????? | | ????????????????????????????????????????? | | ????????????????????????????????????????? | | ????????????????????????????????????????? | | ????????????????????????????????????????? | | ????????????????????????????????????????? | | ????????????????????????????????????????? | | ????????????????????????????????????????? | | | | | | | | | +----------------------------------------------------+ Best States ------------- Heat Dissipation 25 Energy Generation 12 Energy Capacity 265 Matter Stores 300 Matter Capacity 300 Sight Range 16 Terrain Scan Density 10 ECM Strength 1 Evasion (%) 55 Item Schematics ----------------- None Robot Schematics ------------------ None Fabricated ------------ Nothing Repaired ---------- Nothing Studied --------- None Alien Tech Used ----------------- None Achievements -------------- None Challenges ------------ None Game ------ Seed ThrowingPhaseActivator Manual? 0 Play Time 00:12:28 Cumulative 144.9 hours Start 2026.01.18 @ 14:02:50 End 2026.01.18 @ 14:14:08 Sessions 1 Manual Loads 0 Difficulty Rogue Special Mode None Game No. 77 Rogue 64 Adventurer 13 Explorer 0 Win Type - Total 1 Types 1/0/0/0/0/0/0/0/0/0 Lore% 35 Gallery% 38 Achievement% 23 Wizard Run 0 Options --------- Layout 1 ASCII 0 Keyboard 0 Movement Mouse Keybinds 0 Fullscreen 1 Font 24/Smallcaps Map View 50x35 Zoom Use 0% Tactical HUD 1 Map Filters NONE Filters NONE Steam 0 RUN: 4cb83d9d-b49d-4f5b-a28c-692f7173afd2